[Event "Titled Tuesday Blitz December 13 Early 2022"]
[White "Urazayev, Arystanbek"]
[Black "Khandelwal, Ankush"]
[WhiteFideId "13709810"]
[BlackFideId "413470"]
[WhiteElo "2463"]
[BlackElo "2271"]
[Result "0-1"]
[Round "05"]
[TimeControl "180+1"]
[Date "2022.12.14"]
[WhiteClock "0:01:44"]
[BlackClock "0:00:44"]

1. d4 {[%clk 0:03:00]}  Nf6 {[%clk 0:02:57]} 2. Nf3 {[%clk 0:03:01]}  g6 {[%clk 0:02:56]} 3. g3 {[%clk 0:03:00]}  Bg7 {[%clk 0:02:57]} 4. Bg2 {[%clk 0:03:01]}  O-O {[%clk 0:02:57]} 5. O-O {[%clk 0:03:02]}  d6 {[%clk 0:02:57]} 6. Re1 {[%clk 0:03:01]}  Nc6 {[%clk 0:02:56]} 7. e4 {[%clk 0:02:59]}  e5 {[%clk 0:02:50]} 8. d5 {[%clk 0:02:57]}  Ne7 {[%clk 0:02:48]} 9. a4 {[%clk 0:02:57]}  a5 {[%clk 0:02:44]} 10. Nc3 {[%clk 0:02:56]}  Nh5 {[%clk 0:02:43]} 11. Nb5 {[%clk 0:02:55]}  f5 {[%clk 0:02:42]} 12. Ng5 {[%clk 0:02:53]}  f4 {[%clk 0:02:40]} 13. Ne6 {[%clk 0:02:50]}  Bxe6 {[%clk 0:02:39]} 14. dxe6 {[%clk 0:02:50]}  Kh8 {[%clk 0:02:27]} 15. Ra3 {[%clk 0:02:50]}  Nc6 {[%clk 0:02:17]} 16. Rc3 {[%clk 0:02:41]}  Qe7 {[%clk 0:02:16]} 17. Qd5 {[%clk 0:02:39]}  Nb4 {[%clk 0:02:13]} 18. Qb3 {[%clk 0:02:39]}  c6 {[%clk 0:02:12]} 19. Na3 {[%clk 0:02:38]}  Rae8 {[%clk 0:01:57]} 20. Nc4 {[%clk 0:02:38]}  fxg3 {[%clk 0:01:34]} 21. hxg3 {[%clk 0:02:38]}  Qxe6 {[%clk 0:01:24]} 22. Nxa5 {[%clk 0:02:38]}  Qxb3 {[%clk 0:01:24]} 23. Rxb3 {[%clk 0:02:38]}  Nxc2 {[%clk 0:01:24]} 24. Rd1 {[%clk 0:02:38]}  Nd4 {[%clk 0:01:17]} 25. Rxd4 {[%clk 0:02:31]}  exd4 {[%clk 0:01:17]} 26. Rxb7 {[%clk 0:02:32]}  d3 {[%clk 0:00:57]} 27. Bd2 {[%clk 0:02:27]}  Bd4 {[%clk 0:00:54]} 28. Nxc6 {[%clk 0:02:19]}  Bxf2+ {[%clk 0:00:53]} 29. Kh2 {[%clk 0:02:17]}  Bxg3+ {[%clk 0:00:52]} 30. Kh3 {[%clk 0:02:17]}  Be5 {[%clk 0:00:47]} 31. Nxe5 {[%clk 0:02:01]}  dxe5 {[%clk 0:00:47]} 32. a5 {[%clk 0:01:57]}  Rf2 {[%clk 0:00:46]} 33. a6 {[%clk 0:01:42]}  Rxd2 {[%clk 0:00:45]} 34. a7 {[%clk 0:01:43]}  Nf4+ {[%clk 0:00:45]} 35. Kh4 {[%clk 0:01:44]}  Rxg2 {[%clk 0:00:44]} 0-1


[Site "https://www.chess.com"]

[Event "Titled Tuesday Blitz December 13 Early 2022"]
[White "Vega Gutierrez, Sabrina"]
[Black "Barria Zuniga, Daniel"]
[WhiteFideId "2219026"]
[BlackFideId "3400816"]
[WhiteElo "2261"]
[BlackElo "2414"]
[Result "0-1"]
[Round "05"]
[TimeControl "180+1"]
[Date "2022.12.14"]
[WhiteClock "0:00:03"]
[BlackClock "0:00:21"]

1. e4 {[%clk 0:02:56]}  c5 {[%clk 0:02:59]} 2. Nf3 {[%clk 0:02:55]}  Nc6 {[%clk 0:03:00]} 3. d4 {[%clk 0:02:56]}  cxd4 {[%clk 0:03:00]} 4. Nxd4 {[%clk 0:02:57]}  e6 {[%clk 0:03:01]} 5. Nc3 {[%clk 0:02:55]}  a6 {[%clk 0:03:00]} 6. Be2 {[%clk 0:02:42]}  Na5 {[%clk 0:02:59]} 7. O-O {[%clk 0:02:40]}  b5 {[%clk 0:02:59]} 8. Re1 {[%clk 0:02:26]}  Bb7 {[%clk 0:02:57]} 9. a4 {[%clk 0:02:18]}  b4 {[%clk 0:02:56]} 10. Nd5 {[%clk 0:02:19]}  Bc5 {[%clk 0:02:55]} 11. Bf4 {[%clk 0:01:57]}  Rc8 {[%clk 0:02:17]} 12. Nf5 {[%clk 0:00:58]}  exf5 {[%clk 0:01:35]} 13. exf5 {[%clk 0:00:59]}  Kf8 {[%clk 0:01:21]} 14. Bf3 {[%clk 0:00:47]}  Nf6 {[%clk 0:01:10]} 15. Bg5 {[%clk 0:00:32]}  Bxd5 {[%clk 0:01:06]} 16. Bxd5 {[%clk 0:00:32]}  Qb6 {[%clk 0:01:06]} 17. Be3 {[%clk 0:00:20]}  Re8 {[%clk 0:01:00]} 18. Bxc5+ {[%clk 0:00:18]}  Qxc5 {[%clk 0:01:01]} 19. Rxe8+ {[%clk 0:00:13]}  Kxe8 {[%clk 0:01:01]} 20. Bf3 {[%clk 0:00:12]}  Nc6 {[%clk 0:00:58]} 21. Qd3 {[%clk 0:00:11]}  a5 {[%clk 0:00:54]} 22. Rd1 {[%clk 0:00:08]}  Kd8 {[%clk 0:00:53]} 23. Qa6 {[%clk 0:00:08]}  Kc7 {[%clk 0:00:24]} 24. Bxc6 {[%clk 0:00:07]}  dxc6 {[%clk 0:00:25]} 25. c3 {[%clk 0:00:04]}  Rd8 {[%clk 0:00:22]} 26. Re1 {[%clk 0:00:03]}  Rd2 {[%clk 0:00:21]} 0-1


[Site "https://www.chess.com"]

[Event "Titled Tuesday Blitz December 13 Early 2022"]
[White "Vifleemskaia, Svetlana"]
[Black "Baruch, Liam"]
[WhiteFideId "4129490"]
[BlackFideId "14322064"]
[WhiteElo "1930"]
[BlackElo "1940"]
[Result "1/2-1/2"]
[Round "05"]
[TimeControl "180+1"]
[Date "2022.12.14"]
[WhiteClock "0:00:04"]
[BlackClock "0:00:06"]

1. d4 {[%clk 0:03:00]}  d5 {[%clk 0:02:56]} 2. c4 {[%clk 0:03:00]}  e6 {[%clk 0:02:56]} 3. Nc3 {[%clk 0:03:00]}  Nf6 {[%clk 0:02:57]} 4. cxd5 {[%clk 0:03:00]}  exd5 {[%clk 0:02:56]} 5. Bg5 {[%clk 0:02:58]}  Be7 {[%clk 0:02:53]} 6. e3 {[%clk 0:02:58]}  O-O {[%clk 0:02:51]} 7. Bd3 {[%clk 0:02:56]}  c6 {[%clk 0:02:51]} 8. Nge2 {[%clk 0:02:55]}  Nbd7 {[%clk 0:02:51]} 9. O-O {[%clk 0:02:54]}  Re8 {[%clk 0:02:49]} 10. f3 {[%clk 0:02:54]}  Nf8 {[%clk 0:02:37]} 11. Bh4 {[%clk 0:02:52]}  Ng6 {[%clk 0:02:36]} 12. Bf2 {[%clk 0:02:51]}  a5 {[%clk 0:02:03]} 13. Kh1 {[%clk 0:02:41]}  Bd6 {[%clk 0:01:47]} 14. Bg1 {[%clk 0:02:39]}  Qc7 {[%clk 0:01:43]} 15. e4 {[%clk 0:02:30]}  dxe4 {[%clk 0:01:39]} 16. fxe4 {[%clk 0:02:29]}  Ng4 {[%clk 0:01:39]} 17. e5 {[%clk 0:02:27]}  Be7 {[%clk 0:01:30]} 18. Ng3 {[%clk 0:02:22]}  Bg5 {[%clk 0:01:20]} 19. Qf3 {[%clk 0:02:12]}  Nh4 {[%clk 0:00:57]} 20. Qe4 {[%clk 0:02:04]}  g6 {[%clk 0:00:55]} 21. h3 {[%clk 0:01:42]}  f5 {[%clk 0:00:36]} 22. Qe2 {[%clk 0:01:24]}  Nh6 {[%clk 0:00:35]} 23. Rad1 {[%clk 0:01:14]}  Be6 {[%clk 0:00:35]} 24. Bc4 {[%clk 0:01:05]}  Rad8 {[%clk 0:00:33]} 25. Bxe6+ {[%clk 0:01:04]}  Rxe6 {[%clk 0:00:33]} 26. Qc4 {[%clk 0:01:05]}  Qd7 {[%clk 0:00:20]} 27. d5 {[%clk 0:00:51]}  Rxe5 {[%clk 0:00:17]} 28. dxc6+ {[%clk 0:00:48]}  Qf7 {[%clk 0:00:15]} 29. Rxd8+ {[%clk 0:00:44]}  Bxd8 {[%clk 0:00:13]} 30. Qxf7+ {[%clk 0:00:42]}  Nxf7 {[%clk 0:00:12]} 31. cxb7 {[%clk 0:00:42]}  Bc7 {[%clk 0:00:12]} 32. Bh2 {[%clk 0:00:32]}  Re8 {[%clk 0:00:07]} 33. Nd5 {[%clk 0:00:29]}  Be5 {[%clk 0:00:05]} 34. Ne2 {[%clk 0:00:18]}  Kg7 {[%clk 0:00:02]} 35. Nec3 {[%clk 0:00:16]}  Bxh2 {[%clk 0:00:02]} 36. Kxh2 {[%clk 0:00:15]}  Rb8 {[%clk 0:00:02]} 37. g3 {[%clk 0:00:12]}  Rxb7 {[%clk 0:00:01]} 38. gxh4 {[%clk 0:00:11]}  Rxb2+ {[%clk 0:00:02]} 39. Kg3 {[%clk 0:00:11]}  Ne5 {[%clk 0:00:03]} 40. Rf2 {[%clk 0:00:10]}  Rxf2 {[%clk 0:00:02]} 41. Kxf2 {[%clk 0:00:10]}  Kf7 {[%clk 0:00:03]} 42. Ke3 {[%clk 0:00:10]}  Nc4+ {[%clk 0:00:03]} 43. Kd4 {[%clk 0:00:10]}  Nd6 {[%clk 0:00:04]} 44. Kc5 {[%clk 0:00:09]}  Ke6 {[%clk 0:00:04]} 45. Nc7+ {[%clk 0:00:09]}  Ke5 {[%clk 0:00:04]} 46. N7b5 {[%clk 0:00:08]}  Ne4+ {[%clk 0:00:04]} 47. Nxe4 {[%clk 0:00:07]}  fxe4 {[%clk 0:00:05]} 48. Kc4 {[%clk 0:00:07]}  Kf4 {[%clk 0:00:05]} 49. Kd4 {[%clk 0:00:07]}  Kf3 {[%clk 0:00:04]} 50. Nc3 {[%clk 0:00:07]}  e3 {[%clk 0:00:04]} 51. Kd3 {[%clk 0:00:08]}  Kg3 {[%clk 0:00:04]} 52. Kxe3 {[%clk 0:00:08]}  Kxh3 {[%clk 0:00:04]} 53. Ne4 {[%clk 0:00:06]}  Kxh4 {[%clk 0:00:04]} 54. Nf6 {[%clk 0:00:06]}  g5 {[%clk 0:00:04]} 55. Kf3 {[%clk 0:00:06]}  h5 {[%clk 0:00:03]} 56. a4 {[%clk 0:00:04]}  g4+ {[%clk 0:00:03]} 57. Kg2 {[%clk 0:00:04]}  Kg5 {[%clk 0:00:04]} 58. Ne4+ {[%clk 0:00:04]}  Kf4 {[%clk 0:00:04]} 59. Nf6 {[%clk 0:00:04]}  Kg5 {[%clk 0:00:05]} 60. Ne4+ {[%clk 0:00:04]}  Kg6 {[%clk 0:00:05]} 61. Nd6 {[%clk 0:00:04]}  h4 {[%clk 0:00:06]} 62. Ne4 {[%clk 0:00:04]}  Kf5 {[%clk 0:00:06]} 63. Nd6+ {[%clk 0:00:04]}  Kf4 {[%clk 0:00:06]} 64. Nc4 {[%clk 0:00:04]}  h3+ {[%clk 0:00:06]} 65. Kh2 {[%clk 0:00:04]}  Kg5 {[%clk 0:00:07]} 66. Ne3 {[%clk 0:00:03]}  Kh4 {[%clk 0:00:06]} 67. Nf5+ {[%clk 0:00:04]}  Kg5 {[%clk 0:00:06]} 68. Ng3 {[%clk 0:00:04]}  Kh4 {[%clk 0:00:05]} 69. Nf5+ {[%clk 0:00:04]}  Kg5 {[%clk 0:00:06]} 70. Ng3 {[%clk 0:00:04]}  Kf4 {[%clk 0:00:06]} 71. Nh5+ {[%clk 0:00:04]}  Kf3 {[%clk 0:00:05]} 72. Ng3 {[%clk 0:00:04]}  Kf4 {[%clk 0:00:05]} 73. Nh5+ {[%clk 0:00:04]}  Kg5 {[%clk 0:00:06]} 74. Ng3 {[%clk 0:00:04]} 1/2-1/2


[Site "https://www.chess.com"]

[Event "Titled Tuesday Blitz December 13 Early 2022"]
[White "Vlassov, Nikolai"]
[Black "Boros, Denes"]
[WhiteFideId "4103360"]
[BlackFideId "722340"]
[WhiteElo "2598"]
[BlackElo "2805"]
[Result "0-1"]
[Round "05"]
[TimeControl "180+1"]
[Date "2022.12.14"]
[WhiteClock "0:00:05"]
[BlackClock "0:01:08"]

1. e4 {[%clk 0:03:00]}  d6 {[%clk 0:03:00]} 2. f4 {[%clk 0:03:00]}  d5 {[%clk 0:02:59]} 3. exd5 {[%clk 0:02:59]}  Qxd5 {[%clk 0:03:00]} 4. Nc3 {[%clk 0:02:58]}  Qd6 {[%clk 0:03:00]} 5. d4 {[%clk 0:02:56]}  Nf6 {[%clk 0:02:59]} 6. Nf3 {[%clk 0:02:55]}  g6 {[%clk 0:02:59]} 7. Bc4 {[%clk 0:02:48]}  Bg7 {[%clk 0:02:57]} 8. O-O {[%clk 0:02:44]}  O-O {[%clk 0:02:54]} 9. Ne5 {[%clk 0:02:43]}  a6 {[%clk 0:02:51]} 10. Be3 {[%clk 0:02:42]}  b5 {[%clk 0:02:50]} 11. Qf3 {[%clk 0:02:26]}  Ra7 {[%clk 0:02:41]} 12. Bb3 {[%clk 0:01:57]}  Bb7 {[%clk 0:02:39]} 13. Qh3 {[%clk 0:01:50]}  Ra8 {[%clk 0:02:27]} 14. Rad1 {[%clk 0:01:45]}  e6 {[%clk 0:02:26]} 15. a4 {[%clk 0:01:29]}  b4 {[%clk 0:02:26]} 16. Ne2 {[%clk 0:01:29]}  Nc6 {[%clk 0:02:21]} 17. Qh4 {[%clk 0:01:12]}  Ne7 {[%clk 0:02:19]} 18. g4 {[%clk 0:01:09]}  Nfd5 {[%clk 0:01:58]} 19. Bc1 {[%clk 0:01:07]}  c5 {[%clk 0:01:54]} 20. Ng3 {[%clk 0:01:01]}  cxd4 {[%clk 0:01:31]} 21. Ne4 {[%clk 0:01:00]}  Qb6 {[%clk 0:01:31]} 22. Nd7 {[%clk 0:00:50]}  Qc6 {[%clk 0:01:25]} 23. Nxf8 {[%clk 0:00:46]}  Ne3 {[%clk 0:01:09]} 24. Kf2 {[%clk 0:00:05]}  Qxe4 {[%clk 0:01:08]} 0-1


[Site "https://www.chess.com"]

[Event "Titled Tuesday Blitz December 13 Early 2022"]
[White "Winterberg, Lukas"]
[Black "Rohith Krishna S"]
[WhiteFideId "24622702"]
[BlackFideId "46617051"]
[WhiteElo "2350"]
[BlackElo "2270"]
[Result "1-0"]
[Round "05"]
[TimeControl "180+1"]
[Date "2022.12.14"]
[WhiteClock "0:00:11"]
[BlackClock "0:00:15"]

1. d4 {[%clk 0:02:56]}  Nf6 {[%clk 0:02:58]} 2. Bf4 {[%clk 0:02:55]}  d6 {[%clk 0:02:56]} 3. Nf3 {[%clk 0:02:55]}  g6 {[%clk 0:02:48]} 4. e3 {[%clk 0:02:55]}  Bg7 {[%clk 0:02:49]} 5. h3 {[%clk 0:02:56]}  O-O {[%clk 0:02:49]} 6. Be2 {[%clk 0:02:56]}  Nc6 {[%clk 0:02:49]} 7. O-O {[%clk 0:02:56]}  Re8 {[%clk 0:02:37]} 8. Bh2 {[%clk 0:02:54]}  Bd7 {[%clk 0:02:37]} 9. Nbd2 {[%clk 0:02:54]}  e5 {[%clk 0:02:38]} 10. c3 {[%clk 0:02:51]}  e4 {[%clk 0:02:38]} 11. Ne1 {[%clk 0:02:47]}  Ne7 {[%clk 0:02:37]} 12. a4 {[%clk 0:02:41]}  d5 {[%clk 0:02:36]} 13. c4 {[%clk 0:02:41]}  c6 {[%clk 0:02:36]} 14. b4 {[%clk 0:02:34]}  Nf5 {[%clk 0:02:36]} 15. b5 {[%clk 0:02:34]}  h5 {[%clk 0:02:37]} 16. Nb3 {[%clk 0:02:32]}  Nh7 {[%clk 0:02:30]} 17. Nc5 {[%clk 0:02:31]}  Bc8 {[%clk 0:02:31]} 18. bxc6 {[%clk 0:02:31]}  bxc6 {[%clk 0:02:30]} 19. cxd5 {[%clk 0:02:31]}  cxd5 {[%clk 0:02:29]} 20. Bb5 {[%clk 0:02:30]}  Re6 {[%clk 0:02:19]} 21. Nxe6 {[%clk 0:02:29]}  Bxe6 {[%clk 0:02:20]} 22. Rc1 {[%clk 0:02:26]}  Qh4 {[%clk 0:02:20]} 23. Qe2 {[%clk 0:02:02]}  Ng5 {[%clk 0:02:19]} 24. f4 {[%clk 0:01:58]}  exf3 {[%clk 0:02:09]} 25. Nxf3 {[%clk 0:01:58]}  Nxf3+ {[%clk 0:02:09]} 26. Qxf3 {[%clk 0:01:53]}  Bh6 {[%clk 0:02:07]} 27. Bf4 {[%clk 0:01:53]}  Bf8 {[%clk 0:02:05]} 28. Kh2 {[%clk 0:01:41]}  Qe7 {[%clk 0:01:58]} 29. Rc7 {[%clk 0:01:39]}  Qa3 {[%clk 0:01:57]} 30. g4 {[%clk 0:01:28]}  hxg4 {[%clk 0:01:53]} 31. hxg4 {[%clk 0:01:29]}  Nd6 {[%clk 0:01:48]} 32. Be5 {[%clk 0:01:22]}  Bg7 {[%clk 0:00:57]} 33. Bxg7 {[%clk 0:01:20]}  Kxg7 {[%clk 0:00:58]} 34. Bd7 {[%clk 0:01:09]}  Rh8+ {[%clk 0:00:54]} 35. Kg1 {[%clk 0:01:10]}  Qb2 {[%clk 0:00:33]} 36. Qf2 {[%clk 0:00:43]}  Qb8 {[%clk 0:00:33]} 37. Qf6+ {[%clk 0:00:39]}  Kg8 {[%clk 0:00:32]} 38. Bxe6 {[%clk 0:00:19]}  Qxc7 {[%clk 0:00:31]} 39. Bxd5 {[%clk 0:00:17]}  Rh7 {[%clk 0:00:28]} 40. Qe5 {[%clk 0:00:15]}  Qc2 {[%clk 0:00:25]} 41. Qxd6 {[%clk 0:00:11]}  Qe2 {[%clk 0:00:23]} 42. Qg3 {[%clk 0:00:10]}  g5 {[%clk 0:00:20]} 43. Bg2 {[%clk 0:00:10]}  Rh4 {[%clk 0:00:20]} 44. Qf3 {[%clk 0:00:11]}  Qxf3 {[%clk 0:00:20]} 45. Bxf3 {[%clk 0:00:11]}  Rh6 {[%clk 0:00:20]} 46. d5 {[%clk 0:00:11]}  Ra6 {[%clk 0:00:20]} 47. Bd1 {[%clk 0:00:11]}  Ra5 {[%clk 0:00:20]} 48. e4 {[%clk 0:00:10]}  Rc5 {[%clk 0:00:20]} 49. Kf2 {[%clk 0:00:10]}  Rc3 {[%clk 0:00:20]} 50. Re1 {[%clk 0:00:10]}  Kf8 {[%clk 0:00:20]} 51. e5 {[%clk 0:00:10]}  Ke7 {[%clk 0:00:21]} 52. d6+ {[%clk 0:00:11]}  Kd7 {[%clk 0:00:21]} 53. Be2 {[%clk 0:00:11]}  a6 {[%clk 0:00:19]} 54. Bxa6 {[%clk 0:00:12]}  Ke6 {[%clk 0:00:17]} 55. Bb5 {[%clk 0:00:13]}  Rc2+ {[%clk 0:00:15]} 56. Re2 {[%clk 0:00:13]}  Rc3 {[%clk 0:00:15]} 57. d7 {[%clk 0:00:13]}  Rh3 {[%clk 0:00:13]} 58. d8=Q {[%clk 0:00:10]}  Rh2+ {[%clk 0:00:14]} 59. Ke1 {[%clk 0:00:11]}  Rxe2+ {[%clk 0:00:15]} 60. Kxe2 {[%clk 0:00:11]} 1-0


[Site "https://www.chess.com"]

[Event "Titled Tuesday Blitz December 13 Early 2022"]
[White "Xu, Yi"]
[Black "Asavasaetakul, Chawit"]
[WhiteFideId "8605564"]
[BlackFideId "6204856"]
[WhiteElo "2471"]
[BlackElo "1919"]
[Result "1-0"]
[Round "05"]
[TimeControl "180+1"]
[Date "2022.12.13"]
[WhiteClock "0:00:22"]
[BlackClock "0:00:59"]

1. e4 {[%clk 0:03:00]}  d5 {[%clk 0:02:59]} 2. exd5 {[%clk 0:03:00]}  Nf6 {[%clk 0:02:59]} 3. d4 {[%clk 0:02:57]}  Bg4 {[%clk 0:02:59]} 4. Bb5+ {[%clk 0:02:50]}  Nbd7 {[%clk 0:02:58]} 5. f3 {[%clk 0:02:45]}  Bf5 {[%clk 0:02:59]} 6. c4 {[%clk 0:02:43]}  a6 {[%clk 0:02:58]} 7. Ba4 {[%clk 0:02:42]}  b5 {[%clk 0:02:57]} 8. cxb5 {[%clk 0:02:40]}  Nxd5 {[%clk 0:02:58]} 9. Ne2 {[%clk 0:02:27]}  Nb4 {[%clk 0:02:55]} 10. O-O {[%clk 0:02:20]}  axb5 {[%clk 0:02:54]} 11. Bb3 {[%clk 0:02:20]}  e6 {[%clk 0:02:52]} 12. Nbc3 {[%clk 0:02:19]}  c6 {[%clk 0:02:44]} 13. Ng3 {[%clk 0:02:18]}  Bg6 {[%clk 0:02:44]} 14. Nge4 {[%clk 0:02:13]}  Be7 {[%clk 0:02:38]} 15. Bf4 {[%clk 0:02:05]}  O-O {[%clk 0:02:37]} 16. a3 {[%clk 0:02:02]}  Nd5 {[%clk 0:02:34]} 17. Nxd5 {[%clk 0:02:02]}  cxd5 {[%clk 0:02:34]} 18. Nc3 {[%clk 0:01:55]}  b4 {[%clk 0:02:34]} 19. axb4 {[%clk 0:01:55]}  Bxb4 {[%clk 0:02:35]} 20. Qe2 {[%clk 0:01:33]}  Qb6 {[%clk 0:02:34]} 21. Qe3 {[%clk 0:01:16]}  e5 {[%clk 0:02:13]} 22. Rxa8 {[%clk 0:01:12]}  Rxa8 {[%clk 0:02:04]} 23. Bxe5 {[%clk 0:01:07]}  Bxc3 {[%clk 0:01:50]} 24. Bxd5 {[%clk 0:01:04]}  Re8 {[%clk 0:01:49]} 25. Qxc3 {[%clk 0:00:53]}  Nxe5 {[%clk 0:01:46]} 26. Re1 {[%clk 0:00:52]}  h6 {[%clk 0:01:21]} 27. f4 {[%clk 0:00:52]}  Qd8 {[%clk 0:01:11]} 28. Rxe5 {[%clk 0:00:51]}  Rxe5 {[%clk 0:01:10]} 29. Bxf7+ {[%clk 0:00:52]}  Bxf7 {[%clk 0:01:09]} 30. dxe5 {[%clk 0:00:51]}  Qd1+ {[%clk 0:01:07]} 31. Kf2 {[%clk 0:00:50]}  Qb3 {[%clk 0:01:06]} 32. Qxb3 {[%clk 0:00:48]}  Bxb3 {[%clk 0:01:07]} 33. Ke3 {[%clk 0:00:49]}  Kf7 {[%clk 0:01:08]} 34. f5 {[%clk 0:00:47]}  Bc2 {[%clk 0:01:07]} 35. g4 {[%clk 0:00:45]}  Bd1 {[%clk 0:01:06]} 36. h3 {[%clk 0:00:43]}  Bb3 {[%clk 0:01:06]} 37. Kd4 {[%clk 0:00:42]}  Ke7 {[%clk 0:01:04]} 38. Kc3 {[%clk 0:00:41]}  Bd1 {[%clk 0:01:04]} 39. b4 {[%clk 0:00:31]}  Bf3 {[%clk 0:01:03]} 40. b5 {[%clk 0:00:28]}  Kd7 {[%clk 0:01:04]} 41. Kd4 {[%clk 0:00:27]}  Bg2 {[%clk 0:01:04]} 42. b6 {[%clk 0:00:23]}  Bxh3 {[%clk 0:01:03]} 43. e6+ {[%clk 0:00:21]}  Ke7 {[%clk 0:00:58]} 44. b7 {[%clk 0:00:21]}  Bxg4 {[%clk 0:00:58]} 45. b8=Q {[%clk 0:00:21]}  Bxf5 {[%clk 0:00:59]} 46. Qe5 {[%clk 0:00:20]}  Bxe6 {[%clk 0:00:59]} 47. Qxg7+ {[%clk 0:00:20]}  Kd6 {[%clk 0:00:59]} 48. Qxh6 {[%clk 0:00:21]}  Ke7 {[%clk 0:00:59]} 49. Ke5 {[%clk 0:00:21]}  Bf7 {[%clk 0:00:59]} 50. Qg7 {[%clk 0:00:22]}  Ke8 {[%clk 0:00:59]} 51. Kf6 {[%clk 0:00:22]} 1-0


[Site "https://www.chess.com"]

[Event "Titled Tuesday Blitz December 13 Early 2022"]
[White "Yedidia, Daniel"]
[Black "Jiganchine, Roman"]
[WhiteFideId "30905907"]
[BlackFideId "2603667"]
[WhiteElo "2552"]
[BlackElo "2347"]
[Result "1-0"]
[Round "05"]
[TimeControl "180+1"]
[Date "2022.12.14"]
[WhiteClock "0:00:21"]
[BlackClock "0:00:01"]

1. d4 {[%clk 0:03:00]}  d5 {[%clk 0:02:59]} 2. c4 {[%clk 0:03:00]}  e6 {[%clk 0:02:57]} 3. Nc3 {[%clk 0:02:59]}  Nf6 {[%clk 0:02:57]} 4. cxd5 {[%clk 0:02:59]}  exd5 {[%clk 0:02:56]} 5. Bg5 {[%clk 0:02:57]}  c6 {[%clk 0:02:56]} 6. e3 {[%clk 0:02:58]}  Bf5 {[%clk 0:02:56]} 7. Nge2 {[%clk 0:02:53]}  Nbd7 {[%clk 0:02:51]} 8. Ng3 {[%clk 0:02:51]}  Be6 {[%clk 0:02:42]} 9. Bd3 {[%clk 0:02:46]}  Be7 {[%clk 0:02:39]} 10. Nf5 {[%clk 0:02:40]}  Bxf5 {[%clk 0:02:28]} 11. Bxf5 {[%clk 0:02:41]}  O-O {[%clk 0:02:20]} 12. O-O {[%clk 0:02:39]}  Re8 {[%clk 0:02:14]} 13. Rc1 {[%clk 0:02:30]}  Nf8 {[%clk 0:02:10]} 14. Qb3 {[%clk 0:02:20]}  Qb6 {[%clk 0:02:00]} 15. Na4 {[%clk 0:02:13]}  Qxb3 {[%clk 0:01:54]} 16. axb3 {[%clk 0:02:14]}  Ne4 {[%clk 0:01:52]} 17. Bxe7 {[%clk 0:01:50]}  Rxe7 {[%clk 0:01:53]} 18. Rfd1 {[%clk 0:01:39]}  Nd6 {[%clk 0:01:48]} 19. Bd3 {[%clk 0:01:38]}  f5 {[%clk 0:01:41]} 20. g3 {[%clk 0:01:35]}  a5 {[%clk 0:01:37]} 21. Kf1 {[%clk 0:01:33]}  g5 {[%clk 0:01:36]} 22. Ra1 {[%clk 0:01:30]}  Nd7 {[%clk 0:01:09]} 23. Rdc1 {[%clk 0:01:23]}  Kg7 {[%clk 0:01:08]} 24. Nc5 {[%clk 0:01:16]}  Nxc5 {[%clk 0:00:53]} 25. Rxc5 {[%clk 0:01:17]}  Ne4 {[%clk 0:00:30]} 26. Bxe4 {[%clk 0:01:10]}  fxe4 {[%clk 0:00:29]} 27. b4 {[%clk 0:01:07]}  a4 {[%clk 0:00:24]} 28. b5 {[%clk 0:01:05]}  Rf7 {[%clk 0:00:18]} 29. bxc6 {[%clk 0:01:00]}  bxc6 {[%clk 0:00:18]} 30. Rxc6 {[%clk 0:00:53]}  Rb7 {[%clk 0:00:16]} 31. Ra2 {[%clk 0:00:53]}  Rf8 {[%clk 0:00:11]} 32. Rc2 {[%clk 0:00:48]}  Rb4 {[%clk 0:00:11]} 33. Ke1 {[%clk 0:00:47]}  Rfb8 {[%clk 0:00:10]} 34. Kd2 {[%clk 0:00:46]}  Kf6 {[%clk 0:00:10]} 35. Kc1 {[%clk 0:00:46]}  R8b6 {[%clk 0:00:08]} 36. Rc5 {[%clk 0:00:45]}  Ke6 {[%clk 0:00:09]} 37. Ra5 {[%clk 0:00:43]}  Rb7 {[%clk 0:00:04]} 38. R5xa4 {[%clk 0:00:39]}  Rxa4 {[%clk 0:00:04]} 39. Rxa4 {[%clk 0:00:39]}  Rg7 {[%clk 0:00:05]} 40. Ra6+ {[%clk 0:00:39]}  Kf5 {[%clk 0:00:04]} 41. Rd6 {[%clk 0:00:39]}  Kg4 {[%clk 0:00:04]} 42. Kd2 {[%clk 0:00:33]}  Rb7 {[%clk 0:00:03]} 43. Kc3 {[%clk 0:00:30]}  Rc7+ {[%clk 0:00:03]} 44. Kb3 {[%clk 0:00:27]}  Rb7+ {[%clk 0:00:03]} 45. Kc2 {[%clk 0:00:24]}  Rc7+ {[%clk 0:00:03]} 46. Kd2 {[%clk 0:00:24]}  Rb7 {[%clk 0:00:03]} 47. Kc1 {[%clk 0:00:20]}  Rc7+ {[%clk 0:00:03]} 48. Kb1 {[%clk 0:00:20]}  Kf3 {[%clk 0:00:01]} 49. Rxd5 {[%clk 0:00:20]}  Kxf2 {[%clk 0:00:01]} 50. Rxg5 {[%clk 0:00:20]}  Kxe3 {[%clk 0:00:02]} 51. d5 {[%clk 0:00:21]}  Kd2 {[%clk 0:00:01]} 52. d6 {[%clk 0:00:21]} 1-0


[Site "https://www.chess.com"]